[Event "Titled Tuesday Blitz March 01 Early 2022"]
[White "Van den Dikkenberg, Erik"]
[Black "Tashkov, Rumen"]
[WhiteFideId "1005880"]
[BlackFideId "2904004"]
[WhiteElo "2118"]
[BlackElo "2181"]
[Result "1-0"]
[Round "06"]
[TimeControl "180+1"]
[Date "2022.03.01"]
[WhiteClock "0:00:22"]
[BlackClock "0:00:16"]

1. e4 {[%clk 0:03:00]}  d6 {[%clk 0:02:54]} 2. d4 {[%clk 0:02:59]}  Nf6 {[%clk 0:02:52]} 3. Nc3 {[%clk 0:03:00]}  g6 {[%clk 0:02:52]} 4. Bg5 {[%clk 0:03:00]}  Bg7 {[%clk 0:02:52]} 5. Qd2 {[%clk 0:03:00]}  c6 {[%clk 0:02:52]} 6. f3 {[%clk 0:03:00]}  b5 {[%clk 0:02:50]} 7. h4 {[%clk 0:03:00]}  Nbd7 {[%clk 0:02:45]} 8. O-O-O {[%clk 0:02:59]}  b4 {[%clk 0:02:42]} 9. Nce2 {[%clk 0:02:59]}  Qa5 {[%clk 0:02:42]} 10. Kb1 {[%clk 0:02:58]}  Rb8 {[%clk 0:02:41]} 11. Nc1 {[%clk 0:02:56]}  h6 {[%clk 0:02:29]} 12. Be3 {[%clk 0:02:53]}  Qc7 {[%clk 0:02:28]} 13. Nh3 {[%clk 0:02:47]}  a5 {[%clk 0:02:24]} 14. Nf4 {[%clk 0:02:40]}  Bb7 {[%clk 0:02:15]} 15. Bc4 {[%clk 0:02:39]}  c5 {[%clk 0:02:07]} 16. d5 {[%clk 0:02:09]}  Ne5 {[%clk 0:01:54]} 17. Bb5+ {[%clk 0:02:09]}  Kf8 {[%clk 0:01:52]} 18. Bc6 {[%clk 0:01:20]}  Nc4 {[%clk 0:01:37]} 19. Qe2 {[%clk 0:01:19]}  Ba6 {[%clk 0:01:31]} 20. Qf2 {[%clk 0:01:19]}  Nxb2 {[%clk 0:01:25]} 21. e5 {[%clk 0:01:04]}  Nxd1 {[%clk 0:01:20]} 22. Rxd1 {[%clk 0:01:03]}  dxe5 {[%clk 0:01:14]} 23. Nfd3 {[%clk 0:00:38]}  Bxd3 {[%clk 0:00:48]} 24. Nxd3 {[%clk 0:00:37]}  Ne8 {[%clk 0:00:47]} 25. Nxc5 {[%clk 0:00:35]}  Nd6 {[%clk 0:00:37]} 26. Nd7+ {[%clk 0:00:35]}  Kg8 {[%clk 0:00:36]} 27. Nxb8 {[%clk 0:00:34]}  Qxb8 {[%clk 0:00:36]} 28. Bc5 {[%clk 0:00:31]}  Kh7 {[%clk 0:00:33]} 29. g4 {[%clk 0:00:30]}  Rd8 {[%clk 0:00:31]} 30. h5 {[%clk 0:00:30]}  g5 {[%clk 0:00:26]} 31. Qe3 {[%clk 0:00:25]}  Qc7 {[%clk 0:00:23]} 32. Bb6 {[%clk 0:00:23]}  Nc4 {[%clk 0:00:16]} 33. Qe4+ {[%clk 0:00:22]} 1-0


[Site "https://www.chess.com"]

[Event "Titled Tuesday Blitz March 01 Early 2022"]
[White "Vantika, Agrawal"]
[Black "Heinemann, Josefine"]
[WhiteFideId "25050389"]
[BlackFideId "12900460"]
[WhiteElo "2075"]
[BlackElo "2300"]
[Result "1-0"]
[Round "06"]
[TimeControl "180+1"]
[Date "2022.03.01"]
[WhiteClock "0:01:31"]
[BlackClock "0:00:05"]

1. d4 {[%clk 0:03:00]}  Nf6 {[%clk 0:02:59]} 2. c4 {[%clk 0:03:00]}  e6 {[%clk 0:02:59]} 3. g3 {[%clk 0:03:00]}  d5 {[%clk 0:02:57]} 4. Bg2 {[%clk 0:03:00]}  dxc4 {[%clk 0:02:50]} 5. Nf3 {[%clk 0:03:00]}  c5 {[%clk 0:02:50]} 6. O-O {[%clk 0:03:00]}  Nc6 {[%clk 0:02:48]} 7. Qa4 {[%clk 0:02:59]}  Bd7 {[%clk 0:02:47]} 8. Qxc4 {[%clk 0:02:59]}  b5 {[%clk 0:02:47]} 9. Qd3 {[%clk 0:02:58]}  c4 {[%clk 0:02:46]} 10. Qc2 {[%clk 0:02:51]}  Rc8 {[%clk 0:02:46]} 11. Nc3 {[%clk 0:02:32]}  b4 {[%clk 0:02:36]} 12. Ne4 {[%clk 0:02:32]}  Nxe4 {[%clk 0:02:36]} 13. Qxe4 {[%clk 0:02:32]}  Be7 {[%clk 0:02:29]} 14. Rd1 {[%clk 0:02:31]}  O-O {[%clk 0:02:22]} 15. h4 {[%clk 0:02:26]}  h6 {[%clk 0:02:09]} 16. Bf4 {[%clk 0:02:23]}  Na5 {[%clk 0:01:56]} 17. Ne5 {[%clk 0:02:21]}  Ba4 {[%clk 0:01:52]} 18. Rdc1 {[%clk 0:02:19]}  Nc6 {[%clk 0:01:52]} 19. Rxc4 {[%clk 0:02:10]}  Nxe5 {[%clk 0:01:47]} 20. Rxc8 {[%clk 0:02:09]}  Qxc8 {[%clk 0:01:47]} 21. Bxe5 {[%clk 0:02:09]}  Bc2 {[%clk 0:01:22]} 22. Qe3 {[%clk 0:02:04]}  Bg6 {[%clk 0:01:16]} 23. Rc1 {[%clk 0:02:03]}  Qa6 {[%clk 0:01:16]} 24. d5 {[%clk 0:01:41]}  exd5 {[%clk 0:01:00]} 25. Bxd5 {[%clk 0:01:41]}  Re8 {[%clk 0:00:54]} 26. Rc6 {[%clk 0:01:41]}  Qa5 {[%clk 0:00:50]} 27. Rxg6 {[%clk 0:01:38]}  Qxd5 {[%clk 0:00:29]} 28. Rxg7+ {[%clk 0:01:37]}  Kf8 {[%clk 0:00:30]} 29. Qxh6 {[%clk 0:01:33]}  Bd8 {[%clk 0:00:05]} 30. Bd6+ {[%clk 0:01:31]} 1-0


[Site "https://www.chess.com"]

[Event "Titled Tuesday Blitz March 01 Early 2022"]
[White "Vetokhin, Ilia"]
[Black "Miszler, Levente"]
[WhiteFideId "24156078"]
[BlackFideId "763276"]
[WhiteElo "1897"]
[BlackElo "1966"]
[Result "1-0"]
[Round "06"]
[TimeControl "180+1"]
[Date "2022.03.01"]
[WhiteClock "0:00:13"]
[BlackClock "0:00:05"]

1. d4 {[%clk 0:03:00]}  d5 {[%clk 0:02:53]} 2. c4 {[%clk 0:03:00]}  c6 {[%clk 0:02:51]} 3. g3 {[%clk 0:03:01]}  Nf6 {[%clk 0:02:51]} 4. Bg2 {[%clk 0:03:02]}  g6 {[%clk 0:02:51]} 5. Nf3 {[%clk 0:03:02]}  Bg7 {[%clk 0:02:52]} 6. O-O {[%clk 0:03:03]}  dxc4 {[%clk 0:02:49]} 7. Ne5 {[%clk 0:03:03]}  Be6 {[%clk 0:02:40]} 8. Na3 {[%clk 0:02:56]}  Bd5 {[%clk 0:02:34]} 9. Naxc4 {[%clk 0:02:50]}  Bxg2 {[%clk 0:02:34]} 10. Kxg2 {[%clk 0:02:51]}  Qd5+ {[%clk 0:02:28]} 11. f3 {[%clk 0:02:42]}  c5 {[%clk 0:02:26]} 12. e4 {[%clk 0:01:58]}  Qxd4 {[%clk 0:02:26]} 13. Qa4+ {[%clk 0:01:58]}  Nfd7 {[%clk 0:01:47]} 14. Rd1 {[%clk 0:01:50]}  Qxd1 {[%clk 0:01:47]} 15. Qxd1 {[%clk 0:01:49]}  Nxe5 {[%clk 0:01:47]} 16. Nxe5 {[%clk 0:01:41]}  Bxe5 {[%clk 0:01:47]} 17. f4 {[%clk 0:01:31]}  Bd4 {[%clk 0:01:45]} 18. Qe2 {[%clk 0:01:19]}  Nc6 {[%clk 0:01:44]} 19. Be3 {[%clk 0:01:19]}  O-O-O {[%clk 0:01:43]} 20. Rc1 {[%clk 0:01:11]}  b6 {[%clk 0:01:37]} 21. a3 {[%clk 0:01:10]}  Kb7 {[%clk 0:01:29]} 22. b4 {[%clk 0:00:48]}  cxb4 {[%clk 0:01:06]} 23. axb4 {[%clk 0:00:48]}  Bxe3 {[%clk 0:01:05]} 24. Qxe3 {[%clk 0:00:45]}  Nxb4 {[%clk 0:00:58]} 25. Qb3 {[%clk 0:00:44]}  Nc6 {[%clk 0:00:26]} 26. Qxf7 {[%clk 0:00:39]}  Rd2+ {[%clk 0:00:24]} 27. Kh3 {[%clk 0:00:38]}  Rhd8 {[%clk 0:00:20]} 28. e5 {[%clk 0:00:24]}  a5 {[%clk 0:00:10]} 29. Qe6 {[%clk 0:00:24]}  Rc8 {[%clk 0:00:11]} 30. Qb3 {[%clk 0:00:14]}  Rd4 {[%clk 0:00:04]} 31. Qb2 {[%clk 0:00:12]}  Rb4 {[%clk 0:00:03]} 32. Qg2 {[%clk 0:00:12]}  a4 {[%clk 0:00:03]} 33. Qd5 {[%clk 0:00:12]}  a3 {[%clk 0:00:01]} 34. Ra1 {[%clk 0:00:13]}  Ra4 {[%clk 0:00:01]} 35. Qb3 {[%clk 0:00:13]}  Ra5 {[%clk 0:00:02]} 36. Rxa3 {[%clk 0:00:12]}  Nd4 {[%clk 0:00:01]} 37. Qb2 {[%clk 0:00:12]}  Rxa3 {[%clk 0:00:01]} 38. Qxa3 {[%clk 0:00:12]}  Nc6 {[%clk 0:00:01]} 39. g4 {[%clk 0:00:11]}  Kc7 {[%clk 0:00:01]} 40. Qe3 {[%clk 0:00:11]}  Rb8 {[%clk 0:00:01]} 41. f5 {[%clk 0:00:11]}  b5 {[%clk 0:00:02]} 42. f6 {[%clk 0:00:11]}  exf6 {[%clk 0:00:02]} 43. exf6 {[%clk 0:00:12]}  Kd7 {[%clk 0:00:02]} 44. Qd3+ {[%clk 0:00:10]}  Kc7 {[%clk 0:00:02]} 45. f7 {[%clk 0:00:09]}  Ne5 {[%clk 0:00:02]} 46. Qd5 {[%clk 0:00:08]}  Nxf7 {[%clk 0:00:02]} 47. Qxf7+ {[%clk 0:00:08]}  Kc6 {[%clk 0:00:02]} 48. Qxh7 {[%clk 0:00:08]}  b4 {[%clk 0:00:03]} 49. Qxg6+ {[%clk 0:00:09]}  Kc7 {[%clk 0:00:03]} 50. Qc2+ {[%clk 0:00:08]}  Kd7 {[%clk 0:00:03]} 51. Qd3+ {[%clk 0:00:08]}  Kc7 {[%clk 0:00:03]} 52. Qc4+ {[%clk 0:00:09]}  Kd7 {[%clk 0:00:03]} 53. Qb3 {[%clk 0:00:09]}  Kc7 {[%clk 0:00:04]} 54. g5 {[%clk 0:00:09]}  Rb6 {[%clk 0:00:05]} 55. Kg4 {[%clk 0:00:10]}  Rd6 {[%clk 0:00:04]} 56. h4 {[%clk 0:00:10]}  Rd4+ {[%clk 0:00:05]} 57. Kh5 {[%clk 0:00:11]}  Kd6 {[%clk 0:00:05]} 58. g6 {[%clk 0:00:11]}  Rd3 {[%clk 0:00:04]} 59. Qxd3+ {[%clk 0:00:12]}  Ke5 {[%clk 0:00:05]} 60. Qb3 {[%clk 0:00:13]} 1-0


[Site "https://www.chess.com"]

[Event "Titled Tuesday Blitz March 01 Early 2022"]
[White "Vivas Zamora, Fabian Ernesto"]
[Black "Samunenkov, Ihor"]
[WhiteFideId "3902480"]
[BlackFideId "14187086"]
[WhiteElo "1966"]
[BlackElo "2406"]
[Result "0-1"]
[Round "06"]
[TimeControl "180+1"]
[Date "2022.03.01"]
[WhiteClock "0:00:06"]
[BlackClock "0:00:05"]

1. c4 {[%clk 0:03:00]}  c5 {[%clk 0:03:00]} 2. Nf3 {[%clk 0:02:58]}  Nc6 {[%clk 0:03:00]} 3. d4 {[%clk 0:02:58]}  cxd4 {[%clk 0:03:00]} 4. Nxd4 {[%clk 0:02:59]}  Nf6 {[%clk 0:03:00]} 5. Nc3 {[%clk 0:02:58]}  e6 {[%clk 0:03:01]} 6. g3 {[%clk 0:02:49]}  Qb6 {[%clk 0:02:59]} 7. Ndb5 {[%clk 0:02:49]}  Ne5 {[%clk 0:02:57]} 8. Bg2 {[%clk 0:02:46]}  Nxc4 {[%clk 0:02:44]} 9. b3 {[%clk 0:02:34]}  Ne5 {[%clk 0:01:46]} 10. O-O {[%clk 0:02:12]}  d5 {[%clk 0:01:39]} 11. Be3 {[%clk 0:01:54]}  Qd8 {[%clk 0:01:30]} 12. Bxa7 {[%clk 0:01:32]}  Nc6 {[%clk 0:01:24]} 13. Be3 {[%clk 0:01:24]}  Be7 {[%clk 0:01:24]} 14. Na4 {[%clk 0:01:14]}  Nd7 {[%clk 0:01:24]} 15. Bf4 {[%clk 0:01:00]}  e5 {[%clk 0:01:21]} 16. Bc1 {[%clk 0:00:58]}  d4 {[%clk 0:01:21]} 17. e3 {[%clk 0:00:50]}  Qa5 {[%clk 0:00:55]} 18. Qe2 {[%clk 0:00:40]}  O-O {[%clk 0:00:55]} 19. exd4 {[%clk 0:00:34]}  exd4 {[%clk 0:00:56]} 20. Bxc6 {[%clk 0:00:17]}  bxc6 {[%clk 0:00:54]} 21. Nxd4 {[%clk 0:00:18]}  Bf6 {[%clk 0:00:42]} 22. Nxc6 {[%clk 0:00:18]}  Qa6 {[%clk 0:00:37]} 23. Ne7+ {[%clk 0:00:15]}  Kh8 {[%clk 0:00:37]} 24. Qxa6 {[%clk 0:00:12]}  Bxa6 {[%clk 0:00:38]} 25. Ba3 {[%clk 0:00:06]}  Bxf1 {[%clk 0:00:27]} 26. Rxf1 {[%clk 0:00:05]}  Nb6 {[%clk 0:00:18]} 27. Nxb6 {[%clk 0:00:01]}  Rxa3 {[%clk 0:00:17]} 28. Ned5 {[%clk 0:00:02]}  Bd4 {[%clk 0:00:13]} 29. Rd1 {[%clk 0:00:02]}  Bxb6 {[%clk 0:00:10]} 30. Nxb6 {[%clk 0:00:02]}  Rxa2 {[%clk 0:00:11]} 31. Rd3 {[%clk 0:00:03]}  g6 {[%clk 0:00:10]} 32. Nc4 {[%clk 0:00:03]}  Kg7 {[%clk 0:00:10]} 33. Kg2 {[%clk 0:00:04]}  Re8 {[%clk 0:00:10]} 34. Rf3 {[%clk 0:00:03]}  Re7 {[%clk 0:00:08]} 35. Nd6 {[%clk 0:00:03]}  Rb2 {[%clk 0:00:07]} 36. h4 {[%clk 0:00:03]}  h5 {[%clk 0:00:07]} 37. Kh3 {[%clk 0:00:03]}  Rd7 {[%clk 0:00:07]} 38. Nc4 {[%clk 0:00:03]}  Ra2 {[%clk 0:00:04]} 39. Ne5 {[%clk 0:00:03]}  Re7 {[%clk 0:00:04]} 40. Nc6 {[%clk 0:00:03]}  Ree2 {[%clk 0:00:02]} 41. Kg2 {[%clk 0:00:02]}  Re6 {[%clk 0:00:02]} 42. Nd8 {[%clk 0:00:02]}  Rf6 {[%clk 0:00:02]} 43. Nb7 {[%clk 0:00:02]}  Rxf3 {[%clk 0:00:02]} 44. Kxf3 {[%clk 0:00:03]}  Rb2 {[%clk 0:00:02]} 45. Nc5 {[%clk 0:00:03]}  Kf6 {[%clk 0:00:03]} 46. Ke3 {[%clk 0:00:03]}  Ke7 {[%clk 0:00:03]} 47. f3 {[%clk 0:00:03]}  Kd6 {[%clk 0:00:02]} 48. Kd4 {[%clk 0:00:04]}  Rd2+ {[%clk 0:00:02]} 49. Nd3 {[%clk 0:00:04]}  f6 {[%clk 0:00:02]} 50. b4 {[%clk 0:00:04]}  g5 {[%clk 0:00:02]} 51. Ke3 {[%clk 0:00:04]}  Rc2 {[%clk 0:00:02]} 52. Nf2 {[%clk 0:00:03]}  gxh4 {[%clk 0:00:02]} 53. gxh4 {[%clk 0:00:03]}  Rc4 {[%clk 0:00:02]} 54. Ne4+ {[%clk 0:00:03]}  Ke5 {[%clk 0:00:02]} 55. b5 {[%clk 0:00:04]}  Rb4 {[%clk 0:00:02]} 56. Nd2 {[%clk 0:00:03]}  Rxb5 {[%clk 0:00:02]} 57. f4+ {[%clk 0:00:04]}  Ke6 {[%clk 0:00:02]} 58. Nf3 {[%clk 0:00:02]}  Rb3+ {[%clk 0:00:02]} 59. Kf2 {[%clk 0:00:03]}  Rb2+ {[%clk 0:00:03]} 60. Kg3 {[%clk 0:00:03]}  Kf5 {[%clk 0:00:03]} 61. Nd4+ {[%clk 0:00:03]}  Ke4 {[%clk 0:00:04]} 62. Ne6 {[%clk 0:00:03]}  Rb3+ {[%clk 0:00:04]} 63. Kf2 {[%clk 0:00:04]}  Rf3+ {[%clk 0:00:03]} 64. Ke2 {[%clk 0:00:04]}  Rxf4 {[%clk 0:00:04]} 65. Nxf4 {[%clk 0:00:05]}  Kxf4 {[%clk 0:00:05]} 66. Kf2 {[%clk 0:00:06]}  Kg4 {[%clk 0:00:05]} 67. Ke3 {[%clk 0:00:06]}  Kxh4 {[%clk 0:00:06]} 68. Kf4 {[%clk 0:00:07]}  Kh3 {[%clk 0:00:06]} 69. Kf3 {[%clk 0:00:07]}  h4 {[%clk 0:00:05]} 70. Kf2 {[%clk 0:00:06]}  Kg4 {[%clk 0:00:05]} 0-1


[Site "https://www.chess.com"]

[Event "Titled Tuesday Blitz March 01 Early 2022"]
[White "Voege, Tobias"]
[Black "Zaksaite, Salomeja"]
[WhiteFideId "1270513"]
[BlackFideId "12801496"]
[WhiteElo "2335"]
[BlackElo "2002"]
[Result "1-0"]
[Round "06"]
[TimeControl "180+1"]
[Date "2022.03.01"]
[WhiteClock "0:00:10"]
[BlackClock "0:00:01"]

1. e4 {[%clk 0:03:00]}  c5 {[%clk 0:02:57]} 2. Nf3 {[%clk 0:03:00]}  e6 {[%clk 0:02:56]} 3. d4 {[%clk 0:02:56]}  cxd4 {[%clk 0:02:56]} 4. Nxd4 {[%clk 0:02:57]}  Nf6 {[%clk 0:02:56]} 5. Nc3 {[%clk 0:02:56]}  Nc6 {[%clk 0:02:57]} 6. Be3 {[%clk 0:02:53]}  Bb4 {[%clk 0:02:56]} 7. f3 {[%clk 0:02:48]}  d5 {[%clk 0:02:56]} 8. Bb5 {[%clk 0:02:41]}  Bd7 {[%clk 0:02:49]} 9. Bxc6 {[%clk 0:02:29]}  bxc6 {[%clk 0:02:48]} 10. e5 {[%clk 0:02:25]}  c5 {[%clk 0:02:48]} 11. exf6 {[%clk 0:02:22]}  Qxf6 {[%clk 0:02:44]} 12. O-O {[%clk 0:02:14]}  cxd4 {[%clk 0:02:41]} 13. Bxd4 {[%clk 0:02:15]}  Qg6 {[%clk 0:02:39]} 14. f4 {[%clk 0:02:08]}  O-O {[%clk 0:02:16]} 15. f5 {[%clk 0:02:07]}  exf5 {[%clk 0:02:14]} 16. Nxd5 {[%clk 0:02:06]}  Bc6 {[%clk 0:01:59]} 17. Nf4 {[%clk 0:02:04]}  Qd6 {[%clk 0:01:52]} 18. Kh1 {[%clk 0:01:50]}  Rad8 {[%clk 0:01:45]} 19. c3 {[%clk 0:01:48]}  Bc5 {[%clk 0:01:45]} 20. Bxc5 {[%clk 0:01:48]}  Qxc5 {[%clk 0:01:44]} 21. Qh5 {[%clk 0:01:41]}  g6 {[%clk 0:01:36]} 22. Qh6 {[%clk 0:01:38]}  Rd2 {[%clk 0:01:31]} 23. Rg1 {[%clk 0:01:23]}  Rfd8 {[%clk 0:01:24]} 24. Qg5 {[%clk 0:01:09]}  Qe5 {[%clk 0:01:04]} 25. Rae1 {[%clk 0:01:01]}  Qg7 {[%clk 0:01:01]} 26. Re7 {[%clk 0:00:53]}  h6 {[%clk 0:00:47]} 27. Qg3 {[%clk 0:00:53]}  Qf6 {[%clk 0:00:12]} 28. Rxa7 {[%clk 0:00:45]}  Rxb2 {[%clk 0:00:11]} 29. c4 {[%clk 0:00:41]}  Qd6 {[%clk 0:00:10]} 30. Ra6 {[%clk 0:00:32]}  Rd2 {[%clk 0:00:08]} 31. Nd5 {[%clk 0:00:22]}  Qxg3 {[%clk 0:00:07]} 32. hxg3 {[%clk 0:00:23]}  Bxd5 {[%clk 0:00:07]} 33. cxd5 {[%clk 0:00:24]}  R8xd5 {[%clk 0:00:06]} 34. Ra8+ {[%clk 0:00:21]}  Kg7 {[%clk 0:00:06]} 35. Ra7 {[%clk 0:00:21]}  f4 {[%clk 0:00:06]} 36. g4 {[%clk 0:00:18]}  h5 {[%clk 0:00:06]} 37. Rf1 {[%clk 0:00:18]}  hxg4 {[%clk 0:00:05]} 38. Rxf4 {[%clk 0:00:18]}  g3 {[%clk 0:00:05]} 39. Raxf7+ {[%clk 0:00:14]}  Kg8 {[%clk 0:00:04]} 40. Rf8+ {[%clk 0:00:14]}  Kg7 {[%clk 0:00:05]} 41. R8f7+ {[%clk 0:00:13]}  Kg8 {[%clk 0:00:05]} 42. Rf8+ {[%clk 0:00:13]}  Kg7 {[%clk 0:00:05]} 43. Kg1 {[%clk 0:00:13]}  Rd1+ {[%clk 0:00:05]} 44. Rf1 {[%clk 0:00:13]}  Rxf1+ {[%clk 0:00:05]} 45. Rxf1 {[%clk 0:00:13]}  Rd2 {[%clk 0:00:05]} 46. Ra1 {[%clk 0:00:13]}  Kf6 {[%clk 0:00:03]} 47. a4 {[%clk 0:00:14]}  Rd6 {[%clk 0:00:04]} 48. a5 {[%clk 0:00:14]}  Ra6 {[%clk 0:00:05]} 49. Kf1 {[%clk 0:00:14]}  Ke5 {[%clk 0:00:04]} 50. Ke2 {[%clk 0:00:15]}  Kd4 {[%clk 0:00:04]} 51. Kf3 {[%clk 0:00:15]}  Ke5 {[%clk 0:00:01]} 52. Kxg3 {[%clk 0:00:15]}  Kf5 {[%clk 0:00:01]} 53. Kf3 {[%clk 0:00:14]}  Kg5 {[%clk 0:00:02]} 54. Ra4 {[%clk 0:00:14]}  Kf5 {[%clk 0:00:01]} 55. Ke3 {[%clk 0:00:13]}  Ke5 {[%clk 0:00:01]} 56. Kd3 {[%clk 0:00:11]}  Kd5 {[%clk 0:00:01]} 57. Rg4 {[%clk 0:00:12]}  Kc5 {[%clk 0:00:01]} 58. Rg5+ {[%clk 0:00:11]}  Kb4 {[%clk 0:00:01]} 59. Ke4 {[%clk 0:00:12]}  Re6+ {[%clk 0:00:01]} 60. Re5 {[%clk 0:00:12]}  Rf6 {[%clk 0:00:01]} 61. g4 {[%clk 0:00:11]}  Ka4 {[%clk 0:00:01]} 62. Rd5 {[%clk 0:00:10]}  Rc6 {[%clk 0:00:01]} 63. Kf4 {[%clk 0:00:10]} 1-0


[Site "https://www.chess.com"]

[Event "Titled Tuesday Blitz March 01 Early 2022"]
[White "Vokhidov, Shamsiddin"]
[Black "Bryakin, Mikhail"]
[WhiteFideId "14204223"]
[BlackFideId "4165314"]
[WhiteElo "2611"]
[BlackElo "2421"]
[Result "1-0"]
[Round "06"]
[TimeControl "180+1"]
[Date "2022.03.01"]
[WhiteClock "0:02:22"]
[BlackClock "0:01:38"]

1. e4 {[%clk 0:03:00]}  e6 {[%clk 0:02:36]} 2. d4 {[%clk 0:03:00]}  d5 {[%clk 0:02:32]} 3. Nc3 {[%clk 0:03:01]}  Bb4 {[%clk 0:02:18]} 4. Ne2 {[%clk 0:03:00]}  Ne7 {[%clk 0:02:09]} 5. a3 {[%clk 0:02:58]}  Bxc3+ {[%clk 0:02:06]} 6. Nxc3 {[%clk 0:02:58]}  O-O {[%clk 0:02:06]} 7. Bd3 {[%clk 0:02:49]}  dxe4 {[%clk 0:02:00]} 8. Bxe4 {[%clk 0:02:49]}  Nf5 {[%clk 0:02:01]} 9. Bxf5 {[%clk 0:02:35]}  exf5 {[%clk 0:02:02]} 10. O-O {[%clk 0:02:36]}  Nc6 {[%clk 0:01:59]} 11. d5 {[%clk 0:02:35]}  Ne5 {[%clk 0:01:56]} 12. Re1 {[%clk 0:02:28]}  Ng6 {[%clk 0:01:57]} 13. Be3 {[%clk 0:02:26]}  Re8 {[%clk 0:01:52]} 14. Qd2 {[%clk 0:02:26]}  Qh4 {[%clk 0:01:50]} 15. Bg5 {[%clk 0:02:25]}  Rxe1+ {[%clk 0:01:44]} 16. Rxe1 {[%clk 0:02:26]}  Qc4 {[%clk 0:01:37]} 17. Re8+ {[%clk 0:02:25]}  Nf8 {[%clk 0:01:38]} 18. Be7 {[%clk 0:02:22]} 1-0


[Site "https://www.chess.com"]

[Event "Titled Tuesday Blitz March 01 Early 2022"]
[White "Volkov, Maksim"]
[Black "Neiksans, Arturs"]
[WhiteFideId "54123070"]
[BlackFideId "11601388"]
[WhiteElo "2081"]
[BlackElo "2447"]
[Result "0-1"]
[Round "06"]
[TimeControl "180+1"]
[Date "2022.03.01"]
[WhiteClock "0:00:13"]
[BlackClock "0:00:34"]

1. d4 {[%clk 0:03:00]}  d5 {[%clk 0:02:58]} 2. c4 {[%clk 0:03:00]}  e6 {[%clk 0:02:56]} 3. Nf3 {[%clk 0:03:00]}  a6 {[%clk 0:02:56]} 4. cxd5 {[%clk 0:02:58]}  exd5 {[%clk 0:02:56]} 5. Nc3 {[%clk 0:02:57]}  c6 {[%clk 0:02:50]} 6. Bf4 {[%clk 0:02:44]}  Bd6 {[%clk 0:02:50]} 7. Bxd6 {[%clk 0:02:35]}  Qxd6 {[%clk 0:02:50]} 8. e3 {[%clk 0:02:35]}  Ne7 {[%clk 0:02:49]} 9. Bd3 {[%clk 0:02:32]}  Bf5 {[%clk 0:02:48]} 10. O-O {[%clk 0:02:31]}  O-O {[%clk 0:02:47]} 11. Ne5 {[%clk 0:02:26]}  Nd7 {[%clk 0:02:42]} 12. Bxf5 {[%clk 0:02:13]}  Nxf5 {[%clk 0:02:38]} 13. Nd3 {[%clk 0:02:13]}  a5 {[%clk 0:02:34]} 14. Qg4 {[%clk 0:01:56]}  g6 {[%clk 0:02:33]} 15. Rab1 {[%clk 0:01:54]}  Qe7 {[%clk 0:02:29]} 16. Rfe1 {[%clk 0:01:51]}  Nd6 {[%clk 0:02:26]} 17. Na4 {[%clk 0:01:36]}  h5 {[%clk 0:02:19]} 18. Qe2 {[%clk 0:01:32]}  Kg7 {[%clk 0:02:19]} 19. a3 {[%clk 0:01:25]}  Rfe8 {[%clk 0:02:10]} 20. Qc2 {[%clk 0:01:17]}  Nf6 {[%clk 0:02:05]} 21. b4 {[%clk 0:01:11]}  axb4 {[%clk 0:02:05]} 22. axb4 {[%clk 0:01:07]}  Ng4 {[%clk 0:01:57]} 23. Nac5 {[%clk 0:01:02]}  Qh4 {[%clk 0:01:48]} 24. h3 {[%clk 0:01:00]}  Nh6 {[%clk 0:01:48]} 25. Ra1 {[%clk 0:00:57]}  Qe7 {[%clk 0:01:45]} 26. Ne5 {[%clk 0:00:55]}  Nb5 {[%clk 0:01:35]} 27. Ned7 {[%clk 0:00:47]}  Red8 {[%clk 0:01:33]} 28. Nb6 {[%clk 0:00:47]}  Rxa1 {[%clk 0:01:31]} 29. Rxa1 {[%clk 0:00:46]}  Nf5 {[%clk 0:01:31]} 30. Qd2 {[%clk 0:00:43]}  Nfd6 {[%clk 0:01:31]} 31. Qd3 {[%clk 0:00:34]}  g5 {[%clk 0:01:27]} 32. g3 {[%clk 0:00:33]}  Ne4 {[%clk 0:01:19]} 33. Nba4 {[%clk 0:00:30]}  Nbd6 {[%clk 0:01:18]} 34. Nxe4 {[%clk 0:00:28]}  Nxe4 {[%clk 0:01:17]} 35. Nc5 {[%clk 0:00:29]}  Nd6 {[%clk 0:01:17]} 36. Ra7 {[%clk 0:00:27]}  Rc8 {[%clk 0:01:06]} 37. Qc2 {[%clk 0:00:27]}  Rc7 {[%clk 0:01:06]} 38. Nd3 {[%clk 0:00:26]}  Qe6 {[%clk 0:01:04]} 39. Kh2 {[%clk 0:00:24]}  Qf5 {[%clk 0:01:02]} 40. Ne1 {[%clk 0:00:23]}  Qf6 {[%clk 0:00:58]} 41. Nd3 {[%clk 0:00:23]}  Nb5 {[%clk 0:00:56]} 42. Ra8 {[%clk 0:00:22]}  Qf5 {[%clk 0:00:55]} 43. Ne1 {[%clk 0:00:22]}  Qe6 {[%clk 0:00:52]} 44. Nd3 {[%clk 0:00:21]}  Nd6 {[%clk 0:00:51]} 45. Ne5 {[%clk 0:00:21]}  Ne4 {[%clk 0:00:50]} 46. f3 {[%clk 0:00:21]}  Nd6 {[%clk 0:00:49]} 47. g4 {[%clk 0:00:20]}  Qh6 {[%clk 0:00:48]} 48. Kg3 {[%clk 0:00:18]}  Re7 {[%clk 0:00:44]} 49. Kg2 {[%clk 0:00:17]}  f6 {[%clk 0:00:43]} 50. Nd3 {[%clk 0:00:16]}  hxg4 {[%clk 0:00:42]} 51. hxg4 {[%clk 0:00:15]}  Rxe3 {[%clk 0:00:41]} 52. Rd8 {[%clk 0:00:16]}  Nf7 {[%clk 0:00:40]} 53. Rd7 {[%clk 0:00:16]}  Qh7 {[%clk 0:00:34]} 54. Ne1 {[%clk 0:00:11]}  Qxc2+ {[%clk 0:00:34]} 55. Nxc2 {[%clk 0:00:11]}  Re2+ {[%clk 0:00:34]} 56. Kf1 {[%clk 0:00:12]}  Rxc2 {[%clk 0:00:34]} 57. Rxb7 {[%clk 0:00:13]} 0-1


[Site "https://www.chess.com"]